fUSD/lending_fUSD_20260107
["ID","MTS","AMOUNT","RATE_DAILY","PERIOD"]
[400715573,1767789040231,-4539.04,0.00016795,2]
[400715574,1767789040240,-999.99,0.00016795,2]
[400715575,1767789040250,-150.99,0.00016795,2]
[400715576,1767789040260,-150.99,0.00016795,2]
[400715577,1767789040269,-9999.99,0.00016795,2]
[400715578,1767789040279,-9247.15,0.00016795,2]
[400715579,1767789040288,-13349.41,0.00016795,2]
[400715580,1767789040297,-9999.99,0.00016795,2]
[400715581,1767789040306,-25863.43467854,0.00016798,2]
[400715582,1767789040316,-151.0,0.00016832,2]
[400715583,1767789040325,-151.0,0.00016845,2]
[400715584,1767789040335,-151.0,0.00016848,2]
[400715585,1767789040344,-151.0,0.00016848,2]
[400715586,1767789040353,-151.0,0.00016848,2]
[400715587,1767789040362,-151.0,0.00016848,2]
[400715588,1767789040371,-151.0,0.00016851,2]
[400715589,1767789040380,-151.0,0.00016851,2]
[400715590,1767789040390,-151.0,0.00016851,2]
[400715591,1767789040400,-151.0,0.00016851,2]
[400715592,1767789040409,-600.0,0.0001688,2]
[400715593,1767789040419,-500.0,0.00016894,2]
[400715594,1767789040428,-500.0,0.00016894,2]
[400715595,1767789040437,-500.0,0.00016894,2]
[400715596,1767789040447,-474.29981828,0.00016894,2]
[400715597,1767789040457,-151.0,0.00016911,2]
[400715598,1767789040466,-151.0,0.00016911,2]
[400715599,1767789040476,-500.0,0.00016938,2]
[400715600,1767789040486,-327.25369848,0.00016938,2]
[400715601,1767789040495,-500.0,0.00016938,2]
[400715602,1767789040505,-200.0,0.00016938,2]
[400715603,1767789040515,-322.56952136,0.00016945,2]
[400715604,1767789040524,-1266.24,0.00016994,2]
[400715605,1767789040534,-25863.43467854,0.00017018,2]
[400715606,1767789040544,-159.76200147,0.00017032,2]
[400715607,1767789040553,-345.28,0.00017051,2]
[400715608,1767789040563,-488.0,0.00017119,2]
[400715609,1767789040573,-506.85863405,0.00017212,2]
[400715610,1767789040582,-25863.43467854,0.00017239,2]
[400715611,1767789040592,-159.76200147,0.00017347,2]
[400715612,1767789040601,-420.0,0.00017402,2]
[400715613,1767789040611,-420.0,0.00017402,2]
[400715614,1767789040621,-25863.43467854,0.00017459,2]
[400715615,1767789040630,-500.0,0.00017486,2]
[400715616,1767789040640,-200.0,0.00017486,2]
[400715618,1767789040649,-1680.0,0.00017489,2]
[400715620,1767789040658,-250.0,0.00017508,2]
[400715621,1767789040668,-4271.27,0.00017532,2]
[400715622,1767789040677,-1497.59,0.00017565,2]
[400715623,1767789040686,-151.0,0.00017591,2]
[400715624,1767789040696,-1368.92,0.00017594,2]
[400715626,1767789040705,-500.0,0.00017594,2]
[400715627,1767789040715,-500.0,0.00017594,2]
[400715628,1767789040724,-500.0,0.00017594,2]
[400715629,1767789040733,-442.83023798,0.00017594,2]
[400715630,1767789040742,-502.16378022,0.00017594,2]
[400715631,1767789040751,-556.0741427,0.00017594,2]
[400715632,1767789040761,-500.0,0.00017594,2]
[400715633,1767789040770,-500.0,0.00017594,2]
[400715634,1767789040780,-500.0,0.00017594,2]
[400715635,1767789040789,-500.0,0.00017594,2]
[400715637,1767789040798,-500.0,0.00017594,2]
[400715639,1767789040808,-169.74559645,0.00017594,2]
[400715641,1767789040817,-175.21486475,0.00017594,2]
[400715643,1767789040826,-500.0,0.00017594,2]
[400715645,1767789040836,-500.0,0.00017594,2]
[400715647,1767789040845,-500.0,0.00017594,2]
[400715649,1767789040854,-500.0,0.00017594,2]
[400715651,1767789040864,-500.0,0.00017594,2]
[400715653,1767789040877,-500.0,0.00017594,2]
[400715655,1767789040886,-485.97527636,0.00017594,2]
[400715657,1767789040896,-163.2920989,0.00017594,2]
[400715659,1767789040905,-500.0,0.00017594,2]
[400715661,1767789040915,-500.0,0.00017594,2]
[400715663,1767789040924,-500.0,0.00017594,2]
[400715664,1767789040933,-500.0,0.00017594,2]
[400715665,1767789040943,-438.43604995,0.00017594,2]
[400715666,1767789040952,-500.0,0.00017594,2]
[400715667,1767789040962,-500.0,0.00017594,2]
[400715668,1767789040971,-169.0457871,0.00017594,2]
[400715669,1767789040980,-500.0,0.00017594,2]
[400715670,1767789040989,-166.24303816,0.00017594,2]
[400715671,1767789040999,-500.0,0.00017594,2]
[400715672,1767789041008,-500.0,0.00017594,2]
[400715673,1767789041018,-236.4594886,0.00017594,2]
[400715674,1767789041027,-500.0,0.00017594,2]
[400715675,1767789041036,-620.97403321,0.00017599,2]
[400715676,1767789041046,-300.0,0.00017599,2]
[400715677,1767789041055,-195.0,0.00017599,2]
[400715678,1767789041064,-300.0,0.00017599,2]
[400715679,1767789041073,-5000.0,0.00017599,2]
[400715680,1767789041083,-1655.36790437,0.00017599,2]
[400715681,1767789041092,-2500.0,0.000176,2]
[400715682,1767789041102,-193.0,0.000176,2]
[400715683,1767789041111,-600.0,0.000176,2]
[400715684,1767789041120,-600.0,0.000176,2]
[400715685,1767789041129,-152.10889041,0.000176,2]
[400715686,1767789041138,-300.0,0.000176,2]
[400715687,1767789041147,-195.0,0.000176,2]
[400715688,1767789041156,-300.0,0.000176,2]
[400715689,1767789041165,-5000.0,0.000176,2]
[400715690,1767789041174,-2500.0,0.000176,2]
[400715691,1767789041183,-1266.24,0.00017648,2]
[400715692,1767789041192,-159.76200147,0.00017663,2]
[400715693,1767789041202,-25863.43467854,0.0001768,2]
[400715694,1767789041211,-535.0,0.00017852,2]
[400715695,1767789041220,-1368.92,0.00017868,2]
[400715696,1767789041230,-210.65168937,0.000179,2]
[400715697,1767789041239,-201.99613239,0.000179,3]
[400715698,1767789041248,-2780.97907296,0.000179,2]
[400715699,1767789041258,-25863.43467854,0.000179,2]
[400715700,1767789041268,-2866.87344808,0.000179,2]
[400715701,1767789041277,-25000.0,0.000179,3]
[400715702,1767789041286,-17374.69501018,0.000179,2]
[400715703,1767789041296,-345.28,0.00017903,2]
[400715704,1767789041305,-535.0,0.00017961,2]
[400715705,1767789041314,-159.76200147,0.00017979,2]
[400715706,1767789041324,-600.0,0.00017984,2]
[400715707,1767789041333,-535.0,0.00017985,2]
[400715708,1767789041343,-575.02075999,0.0001799,2]
[400715709,1767789041352,-575.02075999,0.0001799,2]
[400715710,1767789041361,-151.0,0.00017997,2]
[400715711,1767789041370,-300.0,0.00017999,2]
[400715712,1767789041379,-666.0,0.00017999,2]
[400715713,1767789041389,-670.98213381,0.00017999,2]
[400715714,1767789041398,-4793839.76188418,0.00018,2]
[400715715,1767789042040,-300.6,0.00016185,2]
[400715716,1767789042078,-699.4,0.00016185,2]
[400715717,1767789042091,-2051.80132915,0.00018,2]
[400715718,1767789042156,-306.23050185,0.00018,2]
[400715719,1767789043106,-1000.0,0.00016792,2]
[400715720,1767789043115,-26336.69674415,0.00016928,2]
[400715721,1767789043126,-2418.0,0.00016928,2]
[400715722,1767789043148,-3301.31833928,0.00016928,2]
[400715723,1767789043157,-1000.0,0.00017399,2]
[400715724,1767789043167,-29062.04663586,0.00018,2]
[400715725,1767789043184,-9571.77246531,0.00018,2]
[400715726,1767789043205,-391047.95717787,0.00018,2]
[400715727,1767789043313,-4133.84343981,0.00018,2]
[400715728,1767789043324,-570.94356914,0.00018,2]
[400715729,1767789043335,-453.46216571,0.00018,2]
[400715741,1767789043731,-1.7e-07,0.00018,2]
[400715765,1767789044975,-22251.86108931,0.00017122,2]
[400715766,1767789045198,-9804.15399412,0.00017122,2]
[400715767,1767789045208,-605303.14776223,0.00018,2]
[400715768,1767789045219,-531.05160485,0.00018,2]
[400715769,1767789045231,-2799.58221255,0.00018,2]
[400715770,1767789045295,-118725.45614013,0.00018,2]
[400715771,1767789046271,-822.69648,0.00018,2]
[400715800,1767789324338,1269.30793821,0.00032876,120]
[400715801,1767789361551,-897.77539625,0.000158,2]
[400715802,1767789361581,-300.0,0.00015825,2]
[400715803,1767789361611,-2500.0,0.00015825,2]
[400715804,1767789361642,-298.4562,0.00015827,2]
[400715805,1767789361672,-300.0,0.00015849,2]
[400715806,1767789361702,-195.0,0.00015849,2]
[400715807,1767789363799,-236.35737438,0.00015727,2]
[400715808,1767789363830,-1200.0,0.00015897,2]
[400715809,1767789363860,-300.0,0.00015897,2]
[400715810,1767789363889,-300.0,0.00015897,2]
[400715811,1767789363919,-300.0,0.00015898,2]
[400715812,1767789363947,-303.48419427,0.00015899,2]
[400715813,1767789363980,-189.2950876,0.00015899,2]
[400715814,1767789364009,-300.0,0.00015899,2]
[400715815,1767789379777,-236.35737436,0.00015764,2]
[400715816,1767789379807,-236.35737436,0.000158,2]
[400715817,1767789379841,-500.0,0.00015899,2]
[400715818,1767789379874,-586.02326518,0.00015899,2]
[400715819,1767789380153,-4202.64780187,0.000158,2]
[400715820,1767789380201,-10000.01,0.000158,2]
[400715821,1767789380689,-4969.05875174,0.000158,2]
[400715822,1767789380783,-61.89249652,0.000158,2]
[400715823,1767789380852,-61.89249652,0.000159,2]
[400715824,1767789380873,-9876.22500696,0.000159,2]
[400715825,1767789380988,-10000.01,0.000159,2]
[400715826,1767789381187,-10000.01,0.000159,2]
[400715827,1767789386828,-10000.01,0.000159,2]
[400715828,1767789386997,-10000.01,0.000159,2]
[400715829,1767789387168,-10000.01,0.000159,2]
[400715830,1767789401837,-10000.01,0.000159,2]
[400715831,1767789402157,-10000.01,0.000159,2]
[400715832,1767789402720,-496.06750488,0.000159,2]
[400715833,1767789402758,-10000.01,0.000159,2]
[400715838,1767789412710,-10000.01,0.000158,2]
[400715839,1767789412864,-10000.01,0.000158,2]
[400715840,1767789413004,-509.88190386,0.000158,2]
[400715841,1767789413039,-500.0,0.00015899,2]
[400715842,1767789413070,-500.0,0.00015899,2]
[400715843,1767789413100,-500.0,0.00015899,2]
[400715844,1767789413129,-523.7349308,0.00015899,2]
[400715845,1767789413535,-4932.77633068,0.000159,2]
[400715846,1767789413739,-10000.01,0.000159,2]
[400715847,1767789413837,-10000.01,0.000159,2]
[400715848,1767789414271,-222.97836515,0.000159,2]
[400715849,1767789433506,-575.39,0.00015636,2]
[400715850,1767789433517,-9424.62,0.000159,2]
[400715851,1767789433652,-10000.01,0.000159,2]
[400715852,1767789444796,-1001.3396,0.000158,2]
[400715853,1767789444825,-500.0,0.0001589,2]
[400715854,1767789444852,-200.0,0.0001589,2]
[400715855,1767789444882,-409.25139494,0.0001589,2]
[400715856,1767789444984,-293.68900862,0.00015899,2]
[400715857,1767789445242,-5485.1390015,0.000159,2]
[400715858,1767789445257,-293.68900862,0.000159,2]
[400715859,1767789445270,-9412.63198276,0.000159,2]
[400715860,1767789445308,-10000.01,0.000159,2]
[400715861,1767789445380,-10000.01,0.000159,2]
[400715862,1767789445417,-10000.01,0.000159,2]
[400715863,1767789445856,-327.25369848,0.0001589,2]
[400715864,1767789445882,-758.49819318,0.000159,2]
[400715865,1767789455548,-151.0,0.0001589,2]
[400715866,1767789455579,-151.0,0.0001589,2]
[400715867,1767789455609,-151.0,0.0001589,2]
[400715868,1767789455639,-151.0,0.0001589,2]
[400715869,1767789455669,-151.0,0.0001589,2]
[400715870,1767789455698,-151.0,0.0001589,2]
[400715871,1767789455727,-151.0,0.0001589,2]
[400715872,1767789455755,-151.0,0.0001589,2]
[400715873,1767789455784,-151.0,0.0001589,2]
[400715874,1767789457301,-7282.01,0.000159,2]
[400715875,1767789457550,-10000.01,0.000159,2]
[400715876,1767789458826,-297.3461334,0.000159,2]
[400715877,1767789460831,4170.44353141,0.00015,2]
[400715878,1767789467444,-10000.01,0.000159,2]
[400715879,1767789467465,-10000.01,0.000159,2]
[400715880,1767789467526,-10000.01,0.000159,2]
[400715885,1767789489060,-196.62378841,0.000158,2]
[400715886,1767789489089,-785.55347171,0.000158,2]
[400715887,1767789489120,-771455.94597635,0.000159,2]
[400715888,1767789489146,-33569.5495,0.000159,2]
[400715889,1767789489172,-29167.0874,0.000159,2]
[400715890,1767789489197,-250.0,0.00015905,2]
[400715891,1767789489224,-172.686956,0.0001591,2]
[400715892,1767789489249,-2500.0,0.0001591,2]
[400715893,1767789489279,-760.40654114,0.0001591,2]
[400715894,1767789489305,-195.0,0.0001598,2]
[400715895,1767789530214,230.49522891,0.00015899,2]
[400715896,1767789530268,500.0,0.00015899,2]
[400715897,1767789530344,500.0,0.00015899,2]
[400715898,1767789530379,500.0,0.00015899,2]
[400715899,1767789530434,500.0,0.00015899,2]
[400715900,1767789530465,500.0,0.00015899,2]
[400715901,1767789530518,550.0,0.00015899,2]
[400715902,1767789530550,500.0,0.00015899,2]
[400715903,1767789530606,500.0,0.00015899,2]
[400715904,1767789530638,500.0,0.00015899,2]
[400715905,1767789530671,500.0,0.00015899,2]
[400715906,1767789530707,500.0,0.00015899,2]
[400715907,1767789530761,500.0,0.00015899,2]
[400715908,1767789530813,500.0,0.00015899,2]
[400715909,1767789530947,500.0,0.00015899,2]
[400715910,1767789530985,185.49648793,0.00015899,2]
[400715911,1767789531045,500.0,0.00015899,2]
[400715912,1767789531083,500.0,0.00015899,2]
[400715913,1767789531149,500.0,0.00015899,2]
[400715914,1767789531284,500.0,0.00015899,2]
[400715915,1767789531642,-250.0,0.00016001,2]
[400715916,1767789545428,166.66,0.00015068,2]
[400715917,1767789545550,166.66,0.00015385,2]
[400715918,1767789545719,166.66,0.00015703,2]
[400715919,1767789549388,34.03828316,0.000158,2]
[400715920,1767789549412,10000.01,0.000158,2]
[400715921,1767789549437,10000.01,0.000158,2]
[400715922,1767789549461,10000.01,0.000158,2]
[400715923,1767789549485,10000.01,0.000158,2]
[400715924,1767789549510,10000.01,0.000158,2]
[400715925,1767789549534,10000.01,0.000158,2]
[400715926,1767789549559,10000.01,0.000158,2]
[400715927,1767789549586,10000.01,0.000158,2]
[400715928,1767789584508,-248.88986117,0.000158,2]
[400715929,1767789584524,-10000.01,0.000158,2]
[400715930,1767789597297,-172.37166361,0.00015799,2]
[400715931,1767789597332,-9655.26667278,0.000158,2]
[400715932,1767789597710,-10000.01,0.000158,2]
[400715933,1767789597915,-10000.01,0.000158,2]
[400715934,1767789598128,-10000.01,0.000158,2]
[400715935,1767789598299,-10000.01,0.000158,2]
[400715936,1767789598479,-10000.01,0.000158,2]
[400715937,1767789607234,-166.21520358,0.000157,2]
[400715938,1767789608650,18837.544861,7.945e-05,2]
[400715939,1767789609119,-30.40858482,0.000157,2]
[400715940,1767789609145,-254.02462231,0.000157,2]
[400715941,1767789609286,-26.97537769,0.000157,2]
[400715942,1767789609319,-300.0,0.00015799,2]
[400715943,1767789609351,-1200.0,0.00015799,2]
[400715944,1767789609382,-300.0,0.00015799,2]
[400715945,1767789609837,-6346.05924462,0.000158,2]
[400715946,1767789610577,-10000.01,0.000158,2]
[400715947,1767789620041,-2676.5,0.00015536,2]
[400715948,1767789620077,-988.2,0.0001579,2]
[400715949,1767789620110,-988.2,0.0001579,2]
[400715950,1767789620140,-151.0,0.00015797,2]
[400715951,1767789620296,-392.21,0.000158,2]
[400715952,1767789647259,-344.94549731,0.00015799,2]
[400715953,1767789647292,-334.52888589,0.00015799,2]
[400715954,1767789647325,-260.90518687,0.00015799,2]
[400715955,1767789647357,-500.0,0.00015799,2]
[400715956,1767789647386,-500.0,0.00015799,2]
[400715957,1767789647417,-525.17494204,0.00015799,2]
[400715958,1767789647697,-5068.90097578,0.000158,2]
[400715959,1767789649990,8075.17881177,0.0002,30]
[400715960,1767789678745,-500.0,0.00015799,2]
[400715961,1767789678787,-540.3306267,0.00015799,2]
[400715962,1767789678818,-455.71446841,0.00015799,2]
[400715963,1767789678937,-40.3306267,0.000158,2]
[400715964,1767789679022,-7007.91980978,0.000158,2]
[400715965,1767789682406,-10000.01,0.000158,2]
[400715966,1767789682460,-258.94882433,0.000158,2]
[400715967,1767789683059,-10000.01,0.000158,2]
[400715968,1767789693554,163.373,0.00015484,2]
[400715969,1767789693597,3157.151,0.00015484,2]
[400715970,1767789695003,-195.0,0.000158,2]
[400715971,1767789699743,-321.17076733,0.000158,2]
[400715972,1767789702955,-163.14635088,0.000158,2]
[400715973,1767789705441,-490.16894231,0.000158,2]
[400715974,1767789707198,-197.23840629,0.00015721,2]
[400715975,1767789709339,-156.21597287,0.00015721,2]
[400715976,1767789713500,-162.8541716,0.00015721,2]
[400715977,1767789716736,-341.30165096,0.00015721,2]
[400715978,1767789717847,-172.18448779,0.00015721,2]
[400715979,1767789721556,-258.05181576,0.000157,2]
[400715980,1767789723894,-206.74282152,0.000157,2]
[400715981,1767789725660,-321.69561579,0.000157,2]
[400715982,1767789730568,-325.28771832,0.000157,2]
[400715983,1767789731559,6679.486,0.0001531,2]
[400715984,1767789731582,10000.01,0.0001531,2]
[400715985,1767789731605,10000.01,0.0001531,2]
[400715986,1767789731628,6350.954,0.0001531,2]
[400715987,1767789731761,982.69,0.0001531,2]
[400715988,1767789734694,-55.65272861,0.000157,2]
[400715989,1767789734717,-309.59234462,0.00015721,2]
[400715990,1767789736840,-358.99583138,0.00015721,2]
[400715991,1767789741293,-225.43491,0.00015721,2]
[400715992,1767789743327,-277.23348557,0.00015721,2]
[400715993,1767789745682,-297.97604525,0.00015721,2]
[400715994,1767789748350,-321.81374295,0.00015721,2]
[400715995,1767789751437,-189.4833,0.00015721,2]
[400715996,1767789758505,-157.570551,0.00015721,2]
[400715997,1767789759908,-178.55663227,0.00015721,2]
[400715998,1767789763969,-179.95227903,0.00015721,2]
[400715999,1767789768559,-294.83961812,0.000157,2]
[400716000,1767789770485,-371.24167226,0.000157,2]
[400716001,1767789774128,-309.40952292,0.000157,2]
[400716002,1767789777284,-203.13612012,0.000157,2]
[400716003,1767789780356,-288.40816029,0.000157,2]
[400716004,1767789781841,-202.48078499,0.000157,2]
[400716005,1767789784764,-221.35025009,0.000157,2]
[400716006,1767789788932,845.521735,7.945e-05,2]
[400716007,1767789789442,-264.82134445,0.00015621,2]
[400716008,1767789792982,-366.72925863,0.00015621,2]
[400716009,1767789797131,-169.92921408,0.00015621,2]
[400716010,1767789800426,-421.75076159,0.00015621,2]
[400716011,1767789801751,-168.42467707,0.00015621,2]
[400716012,1767789805102,-166.67037824,0.00015621,2]
[400716013,1767789806658,-174.42241913,0.00015621,2]
[400716014,1767789808136,-287.17334878,0.00015621,2]
[400716015,1767789812709,-582.57868296,0.00015621,2]
[400716016,1767789814427,-189.13364541,0.00015621,2]
[400716017,1767789816601,-215.56679287,0.00015621,2]
[400716018,1767789821672,-241.65238321,0.00015621,2]
[400716019,1767789822712,-315.93990394,0.00015621,2]
[400716020,1767789825144,-282.78925076,0.00015621,2]
[400716021,1767789829260,-203.47856656,0.00015621,2]
[400716022,1767789834371,-235.66563197,0.00015621,2]
[400716023,1767789835835,-320.70628854,0.00015621,2]
[400716024,1767789838622,-220.99810949,0.00015621,2]
[400716025,1767789840481,-214.90210531,0.00015621,2]
[400716026,1767789842151,-163.03761056,0.00015621,2]
[400716027,1767789843684,-237.63561421,0.00015621,2]
[400716028,1767789848648,-258.30893351,0.00015621,2]
[400716029,1767789852519,-174.26738567,0.00015699,2]
[400716030,1767789854422,-125.73261433,0.00015699,2]
[400716031,1767789854444,-123.37378735,0.000157,2]
[400716032,1767789856696,-155.93683141,0.000157,2]
[400716033,1767789858271,-194.27885049,0.000157,2]
[400716034,1767789859973,-196.62354232,0.000157,2]
[400716035,1767789861952,-289.30237687,0.000157,2]
[400716036,1767789863731,-247.43962627,0.00015621,2]
[400716037,1767789865705,-300.0,0.00015621,2]
[400716038,1767789868362,-300.0,0.00015621,2]
[400716039,1767789871778,-153.29764947,0.00015621,2]
[400716040,1767789874681,-174.29552926,0.00015621,2]
[400716041,1767789874704,-136.82194387,0.000157,2]
[400716042,1767789876978,-500.0,0.000157,2]
[400716043,1767789880506,-177.00021117,0.000157,2]
[400716044,1767789882157,-500.0,0.000157,2]
[400716045,1767789886089,-500.0,0.000157,2]
[400716046,1767789887611,-322.99978883,0.000157,2]
[400716047,1767789890682,-500.0,0.000157,2]
[400716049,1767789895371,-963.338813,0.000157,2]
[400716050,1767789896846,196.23972389,0.00032,120]
[400716051,1767789898239,-500.0,0.000157,2]
[400716052,1767789909507,-300.0,0.00015699,2]
[400716053,1767789909531,-200.0,0.00015699,2]
[400716054,1767789911621,-500.0,0.00015699,2]
[400716055,1767789913723,-255.0,0.00015699,2]
[400716056,1767789917810,-245.0,0.00015699,2]
[400716057,1767789917838,-255.0,0.000157,2]
[400716058,1767789919737,-500.0,0.000157,2]
[400716059,1767789920906,-348.34211338,0.000157,2]
[400716060,1767789925657,-475.82894331,0.000157,2]
[400716061,1767789929837,-500.0,0.000157,2]
[400716062,1767789932541,-500.0,0.000157,2]
[400716063,1767789935211,-500.0,0.000157,2]
[400716064,1767789938480,-500.0,0.000157,2]
[400716065,1767789940938,-500.0,0.00015621,2]
[400716066,1767789943503,-463.338813,0.00015621,2]
[400716067,1767789943526,-36.661187,0.000157,2]
[400716068,1767789948967,-500.0,0.000157,2]
[400716069,1767789950866,-500.0,0.000157,2]
[400716070,1767789953838,-500.0,0.000157,2]
[400716071,1767789958175,-500.0,0.000157,2]
[400716072,1767789962199,-300.0,0.00015699,2]
[400716073,1767789962224,-200.0,0.000157,2]
[400716074,1767789964098,-500.0,0.000157,2]
[400716075,1767789967153,150.0,0.00015196,2]
[400716076,1767789969113,-247.2,0.000157,2]
[400716077,1767789971643,-500.0,0.000157,2]
[400716078,1767789974368,-176.13498879,0.000156,2]
[400716079,1767789974393,-355.75715557,0.000157,2]
[400716080,1767789975630,-500.0,0.000157,2]
[400716081,1767789978221,-500.0,0.000157,2]
[400716082,1767789981470,-500.0,0.000157,2]
[400716083,1767789985700,-500.0,0.000157,2]
[400716084,1767789988614,-500.0,0.000157,2]
[400716085,1767789990603,-448.35695514,0.000157,2]
[400716086,1767789993653,-500.0,0.000157,2]
[400716087,1767789996298,-223.4736911,0.000157,2]
[400716088,1767789997845,-504.92992898,0.000157,2]
[400716089,1767790000004,-287.45422444,0.000157,2]
[400716090,1767790003636,-154.74431651,0.000157,2]
[400716091,1767790003660,-317.8102,0.000157,2]
[400716092,1767790003682,-27.44548349,0.000157,2]
[400716093,1767790008400,659.3,0.00015163,2]
[400716094,1767790009732,-500.0,0.000157,2]
[400716095,1767790015014,-472.55451651,0.000157,2]
[400716096,1767790015037,-27.44548349,0.000157,2]
[400716097,1767790016615,-321.61320066,0.000157,2]
[400716098,1767790018828,-446.03289329,0.000157,2]
[400716099,1767790018853,-53.96710671,0.000157,2]
[400716100,1767790021449,-300.0,0.00015699,2]
[400716101,1767790021474,-137.411,0.000157,2]
[400716102,1767790024306,-403.1375819,0.000157,2]
[400716103,1767790025809,-500.0,0.000157,2]
[400716104,1767790029926,-500.0,0.000157,2]
[400716105,1767790031175,-214.88273804,0.000157,2]
[400716106,1767790034702,-500.0,0.000157,2]
[400716107,1767790036567,-351.64304486,0.000157,2]
[400716108,1767790038771,-292.43511023,0.000157,2]
[400716109,1767790043263,-362.62213385,0.000157,2]
[400716110,1767790045052,-500.0,0.000157,2]
[400716111,1767790047563,-495.07007102,0.000157,2]
[400716112,1767790049153,-236.53913856,0.000157,2]
[400716113,1767790053882,-500.0,0.000157,2]
[400716114,1767790056178,-500.0,0.000157,2]
[400716115,1767790058206,-494.45,0.000157,2]
[400716116,1767790061341,-500.0,0.000157,2]
[400716117,1767790063594,-300.0,0.000157,2]
[400716118,1767790063673,340.0,0.00032877,120]
[400716119,1767790065073,-500.0,0.000157,2]
[400716120,1767790067114,-200.0,0.000157,2]
[400716121,1767790068846,-188.81615301,0.000157,2]
[400716122,1767790071240,-300.0,0.000157,2]
[400716123,1767790074174,-202.8,0.000157,2]
[400716124,1767790077830,-297.2,0.000157,2]
[400716125,1767790078994,-350.0,0.000157,2]
[400716126,1767790081972,-200.0,0.00015699,2]
[400716127,1767790084891,-100.0,0.00015699,2]
[400716128,1767790084915,-300.0,0.00015699,2]
[400716129,1767790084939,-100.0,0.00015699,2]
[400716130,1767790086857,-200.0,0.00015699,2]
[400716131,1767790086884,-1800.02869699,0.000157,2]
[400716132,1767790089151,-259.75483917,0.000157,2]
[400716133,1767790090606,-292.85647842,0.000157,2]
[400716134,1767790093348,-643.93679895,0.000157,2]
[400716135,1767790096969,-500.0,0.000157,2]
[400716136,1767790099056,-220.82894331,0.000157,2]
[400716137,1767790101041,-500.0,0.000157,2]
[400716138,1767790106224,-500.0,0.000157,2]
[400716139,1767790110443,-207.14352158,0.000157,2]
[400716140,1767790112410,-500.0,0.000157,2]
[400716141,1767790132403,5691.07,0.00015155,2]
[400716147,1767790231550,-259.49999994,0.00015699,2]
[400716227,1767790238533,-940.50000006,0.00015699,2]
[400716229,1767790238543,-300.0,0.00015699,2]
[400716231,1767790238553,-4153.38835691,0.000157,2]
[400716233,1767790238562,-176.13498878,0.000157,2]
[400716235,1767790238572,-181.23646539,0.000157,2]
[400716237,1767790238581,-5797.3622,0.000157,2]
[400716239,1767790238592,-2500.0,0.000157,2]
[400716241,1767790238601,-1287.59,0.000157,2]
[400716243,1767790238610,-281.0,0.000157,2]
[400716245,1767790238620,-195.0,0.00015714,2]
[400716247,1767790238630,-250.0,0.00015728,2]
[400716249,1767790238640,-230.28595114,0.00015755,2]
[400716251,1767790238650,-20144.57828929,0.00015787,2]
[400716253,1767790238659,-839.12560641,0.00015787,2]
[400716255,1767790238667,-153.28688412,0.00015787,2]
[400716256,1767790238676,-663.09,0.0001579,3]
[400716258,1767790238686,-500.0,0.00015799,2]
[400716260,1767790238695,-240.87342203,0.00015799,2]